[Event "FIDE WSTC-50-65 2022"]
[Site "Acqui Terme"]
[Date "2022.06.23"]
[Round "4.14"]
[White "Roos, Louis"]
[Black "Klundt, Klaus"]
[Result "1-0"]
[ECO "D36"]
[WhiteElo "2286"]
[BlackElo "2295"]
[Annotator "NA RC"]
[PlyCount "83"]
[EventDate "2022.06.20"]
[EventType "team-tourn"]
[EventCountry "ITA"]
[SourceTitle "playchess.com"]
[Source "ChessBase"]
[SourceQuality "1"]
[TimeControl "40/5400+30:1800+30"]

1. Nf3 {[%emt 0:01:00]} Nf6 {[%emt 0:01:00]} 2. c4 {[%emt 0:00:00]} e6 {[%emt 0:00:30]} 3. Nc3 {[%emt 0:05:00]} d5 {[%emt 0:00:30]} 4. cxd5 {[%emt 0:08:30]} exd5 {[%emt 0:00:00]} 5. d4 {[%emt 0:00:00]} c6 {[%emt 0:01:00]} 6. Qc2 {[%emt 0:02:00]} g6 {[%emt 0:00:30]} 7. Bg5 {[%emt 0:05:30]} Be7 {[%emt 0:00:30]} 8. e3 {[%emt 0:04:30]} Bf5 {[%emt 0:01:30]} 9. Bd3 {[%emt 0:00:00]} Bxd3 {[%emt 0:00:30]} 10. Qxd3 {[%emt 0:00:00]} O-O {[%emt 0:00:30]} 11. O-O {[%emt 0:00:30]} Nbd7 {[%emt 0:03:30]} 12. h3 {[%emt 0:04:30]} Re8 {[%emt 0:01:30]} 13. Bf4 {[%emt 0:04:30]} Ne4 {[%emt 0:08:30]} 14. Nxe4 {[%emt 0:11:30]} dxe4 {[%emt 0:01:30]} 15. Qxe4 {[%emt 0:00:30]} Bd6 {[%emt 0:00:00]} 16. Qc2 {[%emt 0:00:30]} Bxf4 {[%emt 0:00:00]} 17. exf4 {[%emt 0:00:00]} Qf6 {[%emt 0:01:30]} 18. g3 {[%emt 0:00:00]} Qe6 {[%emt 0:00:30]} 19. Kg2 {[%emt 0:02:30]} Qd5 {[%emt 0:00:30]} 20. b3 {[%emt 0:00:30]} Re4 {[%emt 0:02:30]} 21. Qc4 {[%emt 0:07:30]} Nb6 {[%emt 0:01:30]} 22. Qxd5 {[%emt 0:05:30]} Nxd5 {[%emt 0:00:30]} 23. Rfe1 {[%emt 0:02:30]} Rxe1 {[%emt 0:00:30]} 24. Rxe1 {[%emt 0:00:30]} a5 {[%emt 0:00:30]} 25. a4 {[%emt 0:04:30]} Kf8 {[%emt 0:02:30]} 26. Ne5 {[%emt 0:01:30]} Rd8 {[%emt 0:00:30]} 27. Nc4 {[%emt 0:00:30]} b6 {[%emt 0:05:30]} 28. h4 {[%emt 0:12:24]} Nb4 {[%emt 0:07:30]} 29. Nxb6 {[%emt 0:05:04]} Rxd4 {[%emt 0:00:00]} 30. Nc4 {[%emt 0:00:57]} Nd3 {[%emt 0:01:00]} 31. Re3 {[%emt 0:01:05]} Rd5 {[%emt 0:00:30]} 32. Kf3 {[%emt 0:00:57]} Nb4 {[%emt 0:01:30]} 33. Re5 {[%emt 0:03:59]} Rd3+ {[%emt 0:00:30]} 34. Re3 {[%emt 0:00:05]} Rd5 {[%emt 0:00:30]} 35. Ke2 {[%emt 0:00:37]} Nc2 {[%emt 0:00:30]} 36. Rd3 {[%emt 0:00:22]} Nd4+ {[%emt 0:01:30]} 37. Ke3 {[%emt 0:02:15]} Nf5+ {[%emt 0:04:30]} 38. Kd2 {[%emt 0:01:13]} Rc5 {[%emt 0:00:30]} 39. Rd7 {[%emt 0:05:00]} Ke8 {[%emt 0:00:30]} 40. Ra7 {[%emt 0:00:00]} Rd5+ {[%emt 0:00:00]} 41. Kc2 {[%emt 0:02:02]} Nd4+ {[%emt 0:04:00]} 42. Kb2 {[%emt 0:00:30]} 1-0

[Event "FIDE WSTC-50-65 2022"]
[Site "Acqui Terme"]
[Date "2022.06.23"]
[Round "4.15"]
[White "Salov, Sergej"]
[Black "Boudre, Jean-Pierre"]
[Result "1/2-1/2"]
[ECO "C78"]
[WhiteElo "2169"]
[BlackElo "2265"]
[Annotator "NA RC"]
[PlyCount "81"]
[EventDate "2022.06.20"]
[EventType "team-tourn"]
[EventCountry "ITA"]
[SourceTitle "playchess.com"]
[Source "ChessBase"]
[SourceQuality "1"]
[TimeControl "40/5400+30:1800+30"]

1. e4 {[%emt 0:01:00]} e5 {[%emt 0:01:00]} 2. Nf3 {[%emt 0:00:00]} Nc6 {[%emt 0:00:30]} 3. Bb5 {[%emt 0:00:00]} a6 {[%emt 0:00:00]} 4. Ba4 {[%emt 0:00:30]} Nf6 {[%emt 0:00:00]} 5. Nc3 {[%emt 0:00:30]} Bd6 {[%emt 0:19:30]} 6. O-O {[%emt 0:21:30]} O-O {[%emt 0:04:30]} 7. Re1 {[%emt 0:17:30]} Re8 {[%emt 0:02:30]} 8. a3 {[%emt 0:06:30]} Bc5 {[%emt 0:02:30]} 9. b4 {[%emt 0:07:30]} Ba7 {[%emt 0:07:30]} 10. h3 {[%emt 0:06:30]} Nd4 {[%emt 0:09:30]} 11. Nxd4 {[%emt 0:03:30]} Bxd4 {[%emt 0:02:30]} 12. Bb2 {[%emt 0:01:30]} c6 {[%emt 0:04:30]} 13. Qf3 {[%emt 0:03:30]} d6 {[%emt 0:00:30]} 14. Bb3 {[%emt 0:00:30]} Be6 {[%emt 0:02:30]} 15. Nd1 {[%emt 0:03:30]} Bxb2 {[%emt 0:11:30]} 16. Nxb2 {[%emt 0:00:00]} d5 {[%emt 0:03:30]} 17. d3 {[%emt 0:05:00]} a5 {[%emt 0:00:00]} 18. Na4 {[%emt 0:04:01]} axb4 {[%emt 0:03:00]} 19. axb4 {[%emt 0:00:12]} Qd6 {[%emt 0:00:00]} 20. Nc5 {[%emt 0:00:47]} b6 {[%emt 0:00:00]} 21. Nxe6 {[%emt 0:02:07]} fxe6 {[%emt 0:00:30]} 22. Rxa8 {[%emt 0:01:28]} Rxa8 {[%emt 0:00:30]} 23. exd5 {[%emt 0:00:31]} exd5 {[%emt 0:00:00]} 24. g4 {[%emt 0:01:35]} Rf8 {[%emt 0:07:24]} 25. b5 {[%emt 0:03:57]} Qb4 {[%emt 0:06:43]} 26. Rxe5 {[%emt 0:00:52]} Qxb5 {[%emt 0:00:02]} 27. Rf5 {[%emt 0:02:51]} Nd7 {[%emt 0:02:50]} 28. Qf4 {[%emt 0:01:24]} Rxf5 {[%emt 0:01:01]} 29. Qxf5 {[%emt 0:00:19]} Nf8 {[%emt 0:00:02]} 30. Qe5 {[%emt 0:00:34]} Qc5 {[%emt 0:05:10]} 31. h4 {[%emt 0:00:12]} Qb4 {[%emt 0:01:17]} 32. f3 {[%emt 0:01:16]} h6 {[%emt 0:00:11]} 33. h5 {[%emt 0:01:00]} Qd2 {[%emt 0:02:44]} 34. Kf1 {[%emt 0:02:11]} Qd1+ {[%emt 0:00:58]} 35. Kf2 {[%emt 0:00:15]} Qd2+ {[%emt 0:00:06]} 36. Kg3 {[%emt 0:01:14]} Qc1 {[%emt 0:00:25]} 37. Kf2 {[%emt 0:00:36]} Qd2+ {[%emt 0:00:49]} 38. Kg3 {[%emt 0:00:16]} Qc1 {[%emt 0:00:23]} 39. Qd4 {[%emt 0:01:27]} Qe1+ {[%emt 0:00:30]} 40. Kg2 {[%emt 0:00:33]} Qe2+ {[%emt 0:00:30]} 41. Qf2 {[%emt 0:30:37]} 1/2-1/2

[Event "FIDE WSTC-50-65 2022"]
[Site "Acqui Terme"]
[Date "2022.06.23"]
[Round "4.16"]
[White "Berthelot, Yannick"]
[Black "Gruzmann, Boris"]
[Result "1-0"]
[ECO "B90"]
[WhiteElo "2242"]
[BlackElo "2189"]
[Annotator "TA"]
[PlyCount "121"]
[EventDate "2022.06.20"]
[EventType "team-tourn"]
[EventCountry "ITA"]
[SourceTitle "playchess.com"]
[Source "ChessBase"]
[SourceQuality "1"]
[TimeControl "40/5400+30:1800+30"]

{[%evp 21,121,9,19,0,-8,0,81,71,81,78,88,88,90,89,114,111,147,141,148,111,150,120,155,155,239,232,231,228,230,214,228,208,266,268,242,242,245,22,151,118,160,131,189,187,200,175,186,175,314,340,329,0,0,0,283,117,109,121,127,107,119,115,113,59,46,55,60,40,173,141,222,217,269,269,262,262,417,377,491,489,489,484,484,483,466,452,395,259,456,449,500,485,485,469,461,420,1115,957,1751,1646,1556,825]} 1. e4 {[%emt 0:01:00]} c5 {[%emt 0:01:00]} 2. Nf3 {[%emt 0:00:00]} d6 {[%emt 0:00:00]} 3. d4 {[%emt 0:00:00]} cxd4 {[%emt 0:00:00]} 4. Nxd4 {[%emt 0:00:30]} Nf6 {[%emt 0:00:30]} 5. Nc3 {[%emt 0:00:00]} a6 {[%emt 0:00:30]} 6. f3 {[%emt 0:01:00]} e5 {[%emt 0:00:30]} 7. Nb3 {[%emt 0:00:00]} Be6 {[%emt 0:00:00]} 8. Be3 {[%emt 0:00:00]} h5 {[%emt 0:00:00]} 9. Qd2 {[%emt 0:00:30]} Nbd7 {[%emt 0:01:30]} 10. O-O-O {[%emt 0:01:30]} Rc8 {[%emt 0:01:30]} 11. Kb1 {[%emt 0:01:30]} Be7 {[%emt 0:01:30]} 12. Nd5 {[%emt 0:03:30] B90: Sicilian Najdorf: Unusual White 6th moves, 6 Be3 Ng4 and 6 Be3 e5.} Bxd5 {[%emt 0:00:30]} 13. exd5 {[%emt 0:00:00]} Qc7 {[%emt 0:01:30]} (13... Nb6 $11 {remains equal.}) 14. c4 {[%emt 0:10:00] White is better.} b6 {[%emt 0:01:30] [#]} 15. g3 $146 {[%emt 0:07:30][%cal Bg2g3,Bg3g4][%mdl 32]} ({Predecessor:} 15. h3 h4 16. Be2 a5 17. Na1 Nc5 18. Nc2 Nh5 19. Rhe1 Ng3 20. Na3 Qd7 21. Bd3 {1-0 (46) Robson,R (2670)-Sjugirov,S (2662) chess24.com INT 2020}) 15... O-O {[%emt 0:04:30]} 16. h3 {[%emt 0:01:30]} a5 {[%emt 0:07:30]} 17. g4 {[%emt 0:02:30]} a4 {[%emt 0:05:30]} 18. Na1 {[%emt 0:02:30]} Nc5 {[%emt 0:00:30]} 19. Nc2 {[%emt 0:02:30]} h4 {[%emt 0:09:30]} 20. Na3 {[%emt 0:03:30]} Qd8 {[%emt 0:03:30]} 21. Rg1 {[%emt 0:02:30]} Nh7 {[%emt 0:08:30]} 22. g5 $1 {[%emt 0:01:30]} g6 {[%emt 0:03:30]} (22... Qd7 $16 23. Qc2 f6) 23. Nb5 {[%emt 0:03:30]} Ra8 {[%emt 0:00:30]} 24. Rg4 {[%emt 0:10:30]} Qd7 {[%emt 0:01:30]} 25. Bd3 {[%emt 0:10:30] Inhibits Qf5.} ({Weaker is} 25. Rxh4 Nxg5 26. Bxg5 Qf5+ 27. Bd3 Qxg5 28. Qxg5 (28. Rg4 Qxd2 29. Rxd2 Kg7 $15) 28... Bxg5 $11) 25... Nxd3 {[%emt 0:31:20]} 26. Qxd3 {[%emt 0:00:30]} Qf5 {[%emt 0:01:44]} 27. Qxf5 {[%emt 0:10:30]} (27. Bxb6 Qxd3+ 28. Rxd3 Nxg5 $16) 27... gxf5 {[%emt 0:00:08]} 28. Rxh4 {[%emt 0:00:00]} Rfc8 {[%emt 0:03:54]} 29. Na3 $2 {[%emt 0:15:04]} ({Better is} 29. Bxb6 $18 {aiming for Bc7.} Nxg5 30. Rg1) 29... Nf8 {[%emt 0:00:29]} (29... f4 $1 $11 30. Bxb6 Nxg5) 30. Bxb6 $16 {[%emt 0:02:03][%cal Oc4c5] 0x0.000bd6fd6a01dp-1022s more active pieces.} Ng6 {[%emt 0:00:56]} 31. Rh5 {[%emt 0:00:54][%cal Oc4c5]} Nf4 {[%emt 0:00:43]} (31... Bf8 $16) 32. Rh6 $18 {[%emt 0:01:38][%cal Oc4c5]} Bf8 {[%emt 0:00:39]} 33. Rf6 {[%emt 0:01:09]} Nh5 {[%emt 0:04:14]} 34. Rxf5 {[%emt 0:00:30][%cal Oc4c5]} Ng7 {[%emt 0:00:57]} (34... Kg7 $142 35. c5 Kg6) 35. Rf6 {[%emt 0:01:02]} Nh5 {[%emt 0:00:08]} 36. Rf5 {[%emt 0:02:48]} Ng7 {[%emt 0:00:15]} 37. Rf6 {[%emt 0:00:03]} Nh5 {[%emt 0:00:37] [#]} 38. Rh6 {[%emt 0:02:39]} Bxh6 $16 {[%emt 0:03:04]} 39. gxh6 {[%emt 0:00:02]} Ra6 {[%emt 0:01:20] [#]} 40. c5 {[%emt 0:00:00]} dxc5 {[%emt 0:00:00]} 41. Nc4 $36 {[%emt 0:01:08][%mdl 2048] Black is under strong pressure.} Nf6 {[%emt 0:04:02]} 42. d6 {[%emt 0:07:30]} (42. Nd6 $16 Rca8 43. Bxc5) 42... Nd7 $14 {[%emt 0:01:30]} 43. Bc7 {[%emt 0:06:30] Black must now prevent Rg1+.} Kh7 {[%emt 0:02:30]} 44. Re1 {[%emt 0:02:01]} (44. f4 $5) 44... Rc6 {[%emt 0:24:23] Black cannot hold the game after this.} (44... f6 $14) 45. Kc2 {[%emt 0:01:52]} f6 {[%emt 0:02:03]} (45... R8xc7 $16 46. dxc7 Rxc7) 46. f4 $1 $18 {[%emt 0:00:53]} Kxh6 {[%emt 0:01:01]} 47. fxe5 {[%emt 0:00:21]} fxe5 {[%emt 0:00:11]} 48. Nxe5 {[%emt 0:00:34]} Nxe5 {[%emt 0:00:12]} (48... R6xc7 {keeps fighting.} 49. Ng4+ (49. dxc7 Nf6 $18) 49... Kg7) 49. Rxe5 {[%emt 0:00:10]} R8xc7 {[%emt 0:00:36]} 50. dxc7 {[%emt 0:00:12]} Rxc7 {[%emt 0:00:03][%mdl 4096] Endgame KR-KR} 51. Kc3 {[%emt 0:03:55]} Kg6 {[%emt 0:00:11]} 52. Kc4 {[%emt 0:01:03]} Rb7 {[%emt 0:01:50]} 53. Re2 {[%emt 0:00:17]} Rh7 {[%emt 0:00:41]} 54. Rh2 {[%emt 0:01:02] Hoping for Kb5.} Rh5 $2 {[%emt 0:00:38]} (54... a3 55. bxa3 Ra7 56. Kxc5 Kf6 57. Rf2+ Ke5) 55. a3 {[%emt 0:00:47][%cal Ba2a3,Ba3a4][%mdl 32]} Kf6 {[%emt 0:00:28]} 56. Kb5 {[%emt 0:00:24]} Ke6 {[%emt 0:00:17]} 57. Kxa4 {[%emt 0:00:10]} Kd5 {[%emt 0:00:43]} 58. Kb5 {[%emt 0:00:22] Threatens to win with Rd2+.} Kd4 {[%emt 0:00:41]} (58... Kd6 $142 59. Rd2+ Kc7) 59. Rd2+ {[%emt 0:02:26] White is clearly winning.} Ke4 {[%emt 0:00:36]} 60. a4 {[%emt 0:04:52]} Rxh3 {[%emt 0:00:39]} 61. Kxc5 {[%emt 0:00:34] Weighted Error Value: White=0.31/Black=0.36} 1-0

[Event "FIDE WSTC-50-65 2022"]
[Site "Acqui Terme"]
[Date "2022.06.24"]
[Round "5.1"]
[White "Horvath, Jozsef"]
[Black "Adams, Michael"]
[Result "0-1"]
[ECO "E03"]
[WhiteElo "2429"]
[BlackElo "2698"]
[Annotator "TA"]
[PlyCount "64"]
[EventDate "2022.06.20"]
[EventType "team-tourn"]
[EventCountry "ITA"]
[SourceTitle "playchess.com"]
[Source "ChessBase"]
[SourceQuality "1"]
[TimeControl "40/5400+30:1800+30"]

{[%evp 11,64,14,8,14,12,7,14,11,20,8,14,7,16,15,7,4,4,11,29,0,0,-9,0,0,0,-46,-36,-24,-23,-72,-60,-75,-72,-91,-72,-76,-45,-64,-53,-140,-144,-134,-190,-198,-166,-375,-353,-774,-756,-706,-681,-1433,-724,-1907,-1722]} 1. d4 {[%emt 0:01:00]} Nf6 {[%emt 0:01:00]} 2. c4 {[%emt 0:00:00]} e6 {[%emt 0:00:00]} 3. g3 {[%emt 0:00:00]} d5 {[%emt 0:00:00]} 4. Bg2 {[%emt 0:00:30]} dxc4 {[%emt 0:02:30]} 5. Qa4+ {[%emt 0:00:30]} Nbd7 {[%emt 0:00:30]} 6. Qxc4 {[%emt 0:00:30]} a6 {[%emt 0:00:30]} 7. Be3 {[%emt 0:00:30] is now debated instead of 7.Qc2. E03: Open Catalan: 5 Qa4+ Nbd7 6 Qxc4.} Bd6 {[%emt 0:03:30]} 8. Qc2 {[%emt 0:03:30] [#]} Nd5 $146 {[%emt 0:06:30]} ({Predecessor:} 8... O-O 9. Nh3 e5 10. O-O Ng4 11. Bg5 Qe8 12. dxe5 Ndxe5 13. Nc3 h6 14. Bf4 Nf6 {1-0 (55) So,W (2780)-Duda,J (2737) Chess.com INT 2018}) 9. Bd2 {[%emt 0:07:30] The position is equal.} c5 {[%emt 0:01:30]} 10. e4 {[%emt 0:08:30]} Ne7 {[%emt 0:01:30]} 11. Ne2 {[%emt 0:03:30]} cxd4 {[%emt 0:10:30]} 12. Nxd4 {[%emt 0:00:30]} O-O {[%emt 0:01:30]} 13. O-O {[%emt 0:01:30]} Ne5 {[%emt 0:00:30]} 14. Bc3 {[%emt 0:19:30]} b5 {[%emt 0:06:30] ...b4 is the strong threat.} 15. a3 {[%emt 0:07:30] Inhibits b4.} (15. Rd1 $5 {[%cal Rd4b5]}) 15... Bb7 {[%emt 0:00:30]} 16. Qe2 {[%emt 0:01:30]} Qb6 {[%emt 0:03:30]} 17. Nd2 {[%emt 0:02:30]} Rfd8 {[%emt 0:04:30]} 18. Kh1 {[%emt 0:07:30]} (18. Rfc1 $11) 18... b4 $15 {[%emt 0:02:30]} 19. axb4 {[%emt 0:00:30]} Bxb4 {[%emt 0:00:30]} 20. f4 {[%emt 0:11:30]} (20. N2b3 $11) 20... Rxd4 $17 {[%emt 0:05:30]} 21. fxe5 {[%emt 0:04:30]} Bxc3 {[%emt 0:08:30]} 22. bxc3 {[%emt 0:00:59] [#]} Rd7 $1 {[%emt 0:00:00]} 23. Nc4 {[%emt 0:01:48]} Qc5 {[%emt 0:03:00]} 24. Ra5 {[%emt 0:07:59]} Qc7 {[%emt 0:00:30] aiming for ...Rc8.} 25. Qa2 {[%emt 0:00:27]} (25. Rb1 $15) 25... Ng6 {[%emt 0:06:30]} 26. h4 {[%emt 0:04:01] [#]} h5 $1 {[%emt 0:01:30]} 27. Kh2 {[%emt 0:02:45]} Rad8 {[%emt 0:03:30]} 28. Bf3 $2 {[%emt 0:01:00]} (28. Rb1 {is a better defense.}) 28... Rd3 $19 {[%emt 0:01:30]} 29. Bxh5 $2 {[%emt 0:01:07]} (29. Bg2 Rxc3 30. Nd6 Nxe5 31. Rxe5 Rxd6 32. Qa5) 29... Rxc3 {[%emt 0:05:30] Black is clearly winning.} 30. Be2 {[%emt 0:01:41]} Bxe4 {[%emt 0:01:30] Threatens to win with ...Rc2.} 31. Rf2 {[%emt 0:00:39]} Bd5 {[%emt 0:01:28]} 32. Ra4 {[%emt 0:00:30]} Nxe5 {[%emt 0:00:27] Weighted Error Value: White=0.75/Black=0.19 (very precise)} 0-1

[Event "FIDE WSTC-50-65 2022"]
[Site "Acqui Terme"]
[Date "2022.06.24"]
[Round "5.2"]
[White "Short, Nigel D"]
[Black "Varga, Zoltan"]
[Result "1/2-1/2"]
[ECO "B04"]
[WhiteElo "2622"]
[BlackElo "2395"]
[Annotator "TA"]
[PlyCount "51"]
[EventDate "2022.06.20"]
[EventType "team-tourn"]
[EventCountry "ITA"]
[SourceTitle "playchess.com"]
[Source "ChessBase"]
[SourceQuality "1"]
[TimeControl "40/5400+30:1800+30"]

{[%evp 9,51,21,58,28,42,58,54,47,67,20,37,20,25,23,32,20,37,11,25,3,2,0,0,0,14,0,2,-9,-4,-12,-6,-16,-10,-20,-18,-25,-15,-18,-19,-16,0,-23,0,-10]} 1. e4 {[%emt 0:01:00]} Nf6 {[%emt 0:01:00]} 2. e5 {[%emt 0:00:00]} Nd5 {[%emt 0:00:00]} 3. d4 {[%emt 0:00:00]} d6 {[%emt 0:00:00]} 4. Nf3 {[%emt 0:00:30]} dxe5 {[%emt 0:00:00]} 5. Nxe5 {[%emt 0:00:30]} c6 {[%emt 0:00:00]} 6. Bd3 {[%emt 0:03:30] B04: Alekhine's Defence: 4 Nf3.} Nd7 {[%emt 0:00:00]} 7. Nf3 {[%emt 0:00:00]} N7f6 {[%emt 0:00:00]} 8. O-O {[%emt 0:01:00] White is slightly better.} Nb4 {[%emt 0:00:30]} 9. Be2 {[%emt 0:03:30]} (9. Bc4 $14) 9... Bf5 $11 {[%emt 0:03:30]} 10. Na3 {[%emt 0:05:30][%cal Bb1a3,Ba3c4,Bc4e5][%mdl 32]} e6 {[%emt 0:01:30]} 11. c3 {[%emt 0:00:30]} Nbd5 {[%emt 0:00:00]} 12. Nc4 {[%emt 0:00:30] [#]} h6 $146 {[%emt 0:00:00]} ({Predecessor:} 12... Be7 13. a4 O-O 14. a5 Qc7 15. Re1 c5 16. Nfe5 cxd4 17. cxd4 Rfd8 18. Bd2 Ne4 {0-1 (32) Maltsevskaya,A (2327)-Bortnyk,O (2598) Chess.com INT 2021}) 13. Nce5 {[%emt 0:00:30]} Bd6 {[%emt 0:09:30]} 14. c4 {[%emt 0:07:30]} Ne7 {[%emt 0:01:30]} 15. b3 {[%emt 0:06:30]} O-O {[%emt 0:03:30]} 16. Bb2 {[%emt 0:00:30]} a5 {[%emt 0:00:30][%cal Oa5a4]} 17. a3 {[%emt 0:01:30]} Qb8 {[%emt 0:04:30]} 18. Qc1 {[%emt 0:03:30]} b5 {[%emt 0:09:30]} 19. Re1 {[%emt 0:07:30]} Rd8 {[%emt 0:04:30]} 20. h3 {[%emt 0:03:30]} bxc4 {[%emt 0:09:30]} 21. Bxc4 {[%emt 0:01:30]} Nfd5 {[%emt 0:04:30][%cal Bf6d5,Bd5b6,Bb6d7][%mdl 32]} 22. Ra2 {[%emt 0:02:30]} Nb6 {[%emt 0:09:30]} 23. Bf1 {[%emt 0:00:30]} Nd7 {[%emt 0:01:30]} 24. Bc4 {[%emt 0:11:30]} Nb6 {[%emt 0:02:30]} 25. Bf1 {[%emt 0:03:30]} Nd7 {[%emt 0:01:30]} 26. Bc4 {[%emt 0:09:30] Weighted Error Value: White=0.09 (flawless) /Black=0.08 (flawless)} 1/2-1/2

[Event "FIDE WSTC-50-65 2022"]
[Site "Acqui Terme"]
[Date "2022.06.24"]
[Round "5.3"]
[White "Horvath, Peter"]
[Black "Hebden, Mark L"]
[Result "0-1"]
[ECO "E65"]
[WhiteElo "2396"]
[BlackElo "2452"]
[Annotator "TA"]
[PlyCount "76"]
[EventDate "2022.06.20"]
[EventType "team-tourn"]
[EventCountry "ITA"]
[SourceTitle "playchess.com"]
[Source "ChessBase"]
[SourceQuality "1"]
[TimeControl "40/5400+30:1800+30"]

{[%evp 21,76,29,44,15,49,-22,-14,-21,-14,-22,0,-44,-31,-28,-37,-18,-31,-40,-48,-56,-47,-52,-56,-47,-53,-106,-96,-96,-101,-97,-100,-111,-97,-113,-61,-61,-64,-92,-88,-65,-48,-53,-44,-48,-48,-48,-60,-77,-89,-82,-51,-66,-18,-221,-93,-2679,-1841]} 1. d4 {[%emt 0:01:00]} Nf6 {[%emt 0:01:00]} 2. c4 {[%emt 0:00:00]} g6 {[%emt 0:00:30]} 3. Nc3 {[%emt 0:00:00]} Bg7 {[%emt 0:00:30]} 4. g3 {[%emt 0:00:30]} O-O {[%emt 0:01:30]} 5. Bg2 {[%emt 0:00:00]} c5 {[%emt 0:01:30]} 6. Nf3 {[%emt 0:03:00]} cxd4 {[%emt 0:01:30]} 7. Nxd4 {[%emt 0:00:00]} Nc6 {[%emt 0:00:00]} 8. O-O {[%emt 0:01:00]} d6 {[%emt 0:00:00]} 9. Nxc6 {[%emt 0:08:30]} bxc6 {[%emt 0:01:30]} 10. Bxc6 {[%emt 0:00:30]} Rb8 {[%emt 0:00:00]} 11. Bg2 {[%emt 0:03:30]} Qa5 $1 {[%emt 0:01:00]} 12. Qd3 {[%emt 0:22:30] 12.Qd2 is becoming the main line. E65: King's Indian: Fianchetto: 6...c5 7 0-0 without d5 by White.} Be6 {[%emt 0:11:30]} 13. Nd5 {[%emt 0:09:30]} (13. b3 $1 $14) 13... Nxd5 $11 {[%emt 0:02:30]} 14. cxd5 {[%emt 0:00:00] The position is equal.} Bf5 {[%emt 0:00:30]} 15. Qe3 {[%emt 0:05:00]} Qc7 {[%emt 0:01:30] [#]} 16. a4 $146 {[%emt 0:03:30]} ({Predecessor:} 16. Be4 Bxe4 17. Qxe4 Bxb2 18. Rb1 Bf6 19. Be3 Qa5 20. Bh6 Rfc8 21. Rxb8 Rxb8 22. Rb1 {0-1 (50) Cortes Lizano,J (2120)-Obon Temprano,S (2173) Barcelona 2005}) 16... a5 {[%emt 0:09:30]} 17. Be4 {[%emt 0:13:30]} Bxe4 {[%emt 0:02:30]} ({Much less strong is} 17... Bxb2 18. Bxb2 Bxe4 19. Qd4 $16) 18. Qxe4 {[%emt 0:00:30]} Rb4 $36 {[%emt 0:01:30][%mdl 2048] White is under pressure.} 19. Qd3 {[%emt 0:02:30]} Qb7 {[%emt 0:11:30]} 20. Ra3 {[%emt 0:03:30]} Rc8 {[%emt 0:05:30]} 21. Bd2 {[%emt 0:02:30]} Rd4 {[%emt 0:02:30]} 22. Qe3 {[%emt 0:00:30]} Qxd5 {[%emt 0:03:30]} 23. Bc3 {[%emt 0:01:02]} ({White should try} 23. Rd3 $1 $15) 23... Rd1 {[%emt 0:00:30] Black is much more active. The white rooks are badly placed.} 24. Rxd1 {[%emt 0:02:00]} Qxd1+ {[%emt 0:00:30]} 25. Kg2 {[%emt 0:00:04] [#]} Bxc3 {[%emt 0:02:30]} 26. bxc3 $17 {[%emt 0:01:37][%mdl 4096] Endgame KQR-KQR} Qd5+ {[%emt 0:03:30]} 27. Qf3 {[%emt 0:02:06]} Qxf3+ {[%emt 0:02:30]} ({Black should play} 27... Qe6 $17 28. Qd3 Rc4) 28. Kxf3 {[%emt 0:00:02] KR-KR} Rb8 {[%emt 0:00:30]} 29. h4 {[%emt 0:05:09]} Kf8 {[%emt 0:00:30]} 30. Ke3 {[%emt 0:00:43]} Rb2 {[%emt 0:00:00]} 31. Ra1 {[%emt 0:02:27]} Ke8 {[%emt 0:01:00]} 32. h5 {[%emt 0:04:37]} Kd7 {[%emt 0:00:30]} 33. hxg6 {[%emt 0:01:20]} hxg6 {[%emt 0:00:30]} 34. Rh1 {[%emt 0:00:14]} Ra2 {[%emt 0:02:30]} 35. Rh4 {[%emt 0:00:50]} e5 {[%emt 0:01:30]} 36. Rc4 {[%emt 0:00:39]} f5 {[%emt 0:01:30]} (36... Ke6 $15) 37. g4 $2 {[%emt 0:02:06]} (37. f4 $11) 37... f4+ $19 {[%emt 0:01:30]} 38. Kd3 $2 {[%emt 0:01:00][%mdl 8192] [#]} (38. Kf3 $17) 38... d5 $1 {[%emt 0:00:30] Weighted Error Value: White=0.59/Black=0.09 (flawless)} 0-1

[Event "FIDE WSTC-50-65 2022"]
[Site "Acqui Terme"]
[Date "2022.06.24"]
[Round "5.4"]
[White "Arkell, Keith C"]
[Black "Krizsany, Laszlo"]
[Result "1/2-1/2"]
[ECO "E18"]
[WhiteElo "2367"]
[BlackElo "2377"]
[Annotator "TA"]
[PlyCount "45"]
[EventDate "2022.06.20"]
[EventType "team-tourn"]
[EventCountry "ITA"]
[SourceTitle "playchess.com"]
[Source "ChessBase"]
[SourceQuality "1"]
[TimeControl "40/5400+30:1800+30"]

{[%evp 17,45,52,53,46,60,47,67,52,52,34,31,14,45,27,22,4,11,12,10,-14,-13,-20,0,0,0,0,23,-32,-18,-25]} 1. Nf3 {[%emt 0:01:00]} b6 {[%emt 0:01:00]} 2. c4 {[%emt 0:00:30]} Bb7 {[%emt 0:00:30]} 3. Nc3 {[%emt 0:01:30]} e6 {[%emt 0:03:30]} 4. g3 {[%emt 0:00:30]} Nf6 {[%emt 0:04:30]} 5. Bg2 {[%emt 0:00:00]} Be7 {[%emt 0:01:30]} 6. d4 {[%emt 0:00:00]} O-O {[%emt 0:00:30]} 7. O-O {[%emt 0:01:30]} d6 {[%emt 0:01:30]} 8. Re1 {[%emt 0:00:30]} Nbd7 {[%emt 0:00:30] is the legacy move (8...Ne4).} 9. e4 {[%emt 0:00:30]} e5 {[%emt 0:00:30]} 10. b3 {[%emt 0:01:30] E18: Queen's Indian: Old Main Line (4 g3 Bb7 5 Bg2 Be7 6 0-0 0-0 7 Nc3).} Re8 {[%emt 0:02:30]} 11. Bb2 {[%emt 0:02:30]} Bf8 {[%emt 0:08:30]} 12. Qc2 {[%emt 0:00:30] White is slightly better.} (12. Nd5 {seems wilder.} Ng4 13. Qd2 c6 14. Ne3) 12... c6 {[%emt 0:11:30]} 13. Rad1 {[%emt 0:12:30]} Qc7 {[%emt 0:00:30]} 14. a3 {[%emt 0:00:30]} Rad8 {[%emt 0:02:30][%cal Ob6b5]} 15. b4 {[%emt 0:00:30]} a6 {[%emt 0:03:30] [#]} 16. dxe5 $146 {[%emt 0:07:30]} ({Predecessor:} 16. c5 bxc5 17. bxc5 dxc5 18. dxe5 Ng4 19. e6 Rxe6 20. Na4 Rde8 21. h3 Nge5 22. Nxe5 Nxe5 23. Nxc5 {1-0 (40) Krivoshey,S (2500)-Korchmar,A (2103) Saratov 2006}) 16... Nxe5 {[%emt 0:02:30]} 17. Nxe5 {[%emt 0:11:30]} (17. Na4 {keeps more tension.} c5 18. bxc5 b5 19. Nb6) 17... dxe5 {[%emt 0:00:30]} 18. Qe2 {[%emt 0:07:30]} Bc8 {[%emt 0:03:30]} 19. h3 {[%emt 0:02:30]} Be6 {[%emt 0:02:30]} 20. Rxd8 {[%emt 0:02:30]} Rxd8 {[%emt 0:00:30]} 21. Rc1 {[%emt 0:00:00]} Qb8 {[%emt 0:07:30]} 22. Na4 {[%emt 0:09:00]} ({White should play} 22. Nd1 $1 $11) 22... Nd7 {[%emt 0:08:30]} 23. Nc3 {Weighted Error Value: White=0.19 (very precise) /Black=0.10 (very precise)} 1/2-1/2